[Event "44th Chess Olympiad Open 2022"]
[Site "Chennai"]
[Date "2022.07.30"]
[Round "2.40"]
[White "Nogerbek, Kazybek"]
[Black "Sharifov, Mekhriddin"]
[Result "1-0"]
[WhiteElo "2437"]
[BlackElo "2097"]
[Annotator "TA"]
[PlyCount "55"]
[EventDate "2022.??.??"]
[TimeControl "60"]

{[%evp 32,55,37,33,78,64,75,47,60,41,143,149,129,138,143,154,129,55,71,63,119,
112,125,117,412,392]} 1. c4 {[%emt 0:00:08]} Nf6 {[%emt 0:00:07]} 2. Nc3 {
[%emt 0:00:14]} e6 {[%emt 0:00:45]} 3. Nf3 {[%emt 0:00:13]} c5 {[%emt 0:03:43]}
4. g3 {[%emt 0:02:40]} b6 {[%emt 0:00:17]} 5. Bg2 {[%emt 0:00:52]} Bb7 {
[%emt 0:00:08]} 6. O-O {[%emt 0:00:33]} Be7 {[%emt 0:00:08]} 7. d4 {[%emt 0:00:
00]} cxd4 {[%emt 0:00:12]} 8. Qxd4 {[%emt 0:00:10]} d6 {[%emt 0:11:16]} 9. b3 {
[%emt 0:00:57]} O-O {[%emt 0:05:38]} 10. Rd1 {[%emt 0:03:33]} Nbd7 {[%emt 0:00:
00]} 11. e4 {[%emt 0:03:34]} a6 {[%emt 0:01:23]} 12. Ba3 {[%emt 0:01:22]} Nc5 {
[%emt 0:03:51]} 13. e5 {[%emt 0:00:27]} dxe5 {[%emt 0:14:51]} 14. Qxd8 {
[%emt 0:03:20]} Rfxd8 {[%emt 0:01:44]} 15. Nxe5 {[%emt 0:01:20]} Bxg2 {[%emt 0:
00:00]} 16. Kxg2 {[%emt 0:00:11]} Bf8 {[%emt 0:04:19]} 17. Bxc5 {[%emt 0:04:16]
} bxc5 {[%emt 0:07:37] A30: Symmetrical English: Double Fianchetto and
Hedgehog.} 18. Na4 {[%emt 0:02:01]} g5 {[%emt 0:14:04] [#]} 19. Kf3 $146 {
[%emt 0:04:43]} ({Predecessor:} 19. f4 g4 20. Nb6 Rab8 21. Nbd7 Nxd7 22. Nxd7
Rbc8 23. Nf6+ Kg7 24. Nxg4 f6 25. Kf3 {1-0 (49) Bok,B (2624)-Rojas Daza,E
Chess.com INT 2021}) 19... h5 {[%emt 0:02:09] White is slightly better.} 20. h3
{[%emt 0:04:01]} Bg7 {[%emt 0:01:45] [#]} (20... Rd6 $14) 21. Nc6 $1 $16 {
[%emt 0:08:03] Pair of Knights!} ({Much less strong is} 21. Nxc5 $6 g4+ 22. Ke2
(22. hxg4 Nxg4 23. Ned3 Bxa1 $11) 22... Nd5 23. cxd5 Bxe5 $14) 21... Rxd1 {
[%emt 0:02:16]} 22. Rxd1 {[%emt 0:01:19]} g4+ {[%emt 0:07:36] [#]} 23. hxg4 $1
{[%emt 0:00:17] White is more active.} hxg4+ {[%emt 0:00:01]} 24. Kg2 {[%emt 0:
00:00]} (24. Kf4 $16) 24... Ne4 $14 {[%emt 0:03:09]} 25. Rd7 {[%emt 0:03:45]}
Kh7 {[%emt 0:03:48]} (25... a5 $14) 26. Rxf7 {[%emt 0:04:45] Strongly
threatening Rf4.} Rc8 {[%emt 0:01:18]} 27. Ne5 {[%emt 0:03:23] aiming for Re7.}
Nf6 $2 {[%emt 0:03:40]} (27... Kg8 $16 {is a better defense.} 28. Rf4 Nxf2) 28.
Re7 {[%emt 0:01:18] Weighted Error Value: White=0.14 (very precise) /Black=0.62
} 1-0

[Event "44th Chess Olympiad Open 2022"]
[Site "Chennai"]
[Date "2022.07.30"]
[Round "2.40"]
[White "Khusenkhojaev, Muhammad"]
[Black "Suleymenov, Alisher"]
[Result "1-0"]
[WhiteElo "2397"]
[BlackElo "2467"]
[Annotator "TA"]
[PlyCount "77"]
[EventDate "2022.??.??"]
[TimeControl "60"]

{[%evp 16,77,33,31,41,15,27,18,11,16,47,49,50,53,54,53,51,47,65,56,64,64,64,64,
96,54,137,129,100,80,74,77,250,245,309,298,287,301,302,316,316,293,421,418,523,
490,536,528,502,482,509,468,740,486,477,0,712,703,736,682,1700,1527,5323,3814]
} 1. d4 {[%emt 0:00:21]} Nf6 {[%emt 0:00:06]} 2. c4 {[%emt 0:00:05]} g6 {
[%emt 0:00:05]} 3. g3 {[%emt 0:00:09]} Bg7 {[%emt 0:00:07]} 4. Bg2 {[%emt 0:00:
00]} O-O {[%emt 0:00:05]} 5. Nc3 {[%emt 0:00:12]} d6 {[%emt 0:00:04]} 6. Nf3 {
[%emt 0:00:14]} Nc6 {[%emt 0:00:05]} 7. O-O {[%emt 0:00:10]} e5 {[%emt 0:00:04]
} 8. d5 {[%emt 0:00:16]} Nb8 {[%emt 0:00:06] Nowadays more popular than 8...
Ne7.} 9. e4 {[%emt 0:00:15]} a5 {[%emt 0:00:08] E62: King's Indian: Fianchetto:
6...c6 and Panno Variation (6...Nc6) without ...a6.} 10. Re1 {[%emt 0:04:01]}
Na6 {[%emt 0:04:37]} 11. Rb1 {[%emt 0:00:16]} Nc5 {[%emt 0:11:25] The position
is equal.} 12. b3 {[%emt 0:00:12]} c6 {[%emt 0:04:05] [#]} 13. Ba3 $146 {
[%emt 0:35:37]} ({Predecessor:} 13. dxc6 bxc6 14. Ba3 Qe7 15. Qd2 Rd8 16. Rbd1
Be6 17. h3 Qc7 18. Ng5 Qb6 19. Qe3 {1-0 (49) Ding,L (2799)-Pichot,A (2630)
chess24.com INT 2021}) 13... cxd5 {[%emt 0:00:25] [#] ...d4 is the strong
threat.} 14. Bxc5 {[%emt 0:02:04]} (14. exd5 Bf5 $11) 14... dxc5 {[%emt 0:00:
00]} 15. cxd5 {[%emt 0:00:17]} Ne8 {[%emt 0:04:12]} 16. Nd2 {[%emt 0:00:44]} f5
{[%emt 0:06:18]} 17. Bh3 {[%emt 0:03:44]} Bd7 {[%emt 0:17:29]} 18. a4 {[%emt 0:
00:00] Inhibits b5.} Nd6 {[%emt 0:00:04]} 19. Nc4 {[%emt 0:00:30]} Nf7 {
[%emt 0:00:05]} 20. d6 {[%emt 0:19:20]} Ng5 {[%emt 0:21:09]} (20... Kh8 $1 $14)
21. Bg2 $16 {[%emt 0:00:06] White is more active.} f4 {[%emt 0:00:05]} 22. Qd5+
{[%emt 0:08:15]} Be6 {[%emt 0:00:21]} 23. Qxb7 {[%emt 0:00:26]} Qf6 $2 {
[%emt 0:01:43]} (23... Rf7 $16 24. Qc6 Rc8) 24. Nd5 $18 {[%emt 0:00:41]} Bxd5 {
[%emt 0:00:26]} 25. Qxd5+ {[%emt 0:00:09]} Kh8 {[%emt 0:00:04]} 26. Qxc5 {
[%emt 0:03:23]} Ne6 {[%emt 0:03:37][%cal Yg5e6,Ye6d4,Yd4e2]} 27. Qd5 {[%emt 0:
01:33]} ({But not} 27. Qb6 $6 Nd4 28. Kh1 Qe6 $18) 27... Nd4 {[%emt 0:00:00]}
28. Kh1 {[%emt 0:00:34]} ({Weaker is} 28. Nxa5 fxg3 29. fxg3 Qf2+ 30. Kh1 Nc2
$16) 28... Qg5 {[%emt 0:09:27]} (28... Nc2 $142 29. Rec1 (29. Nxa5 fxg3 30.
Rec1 Qxf2 $16) 29... Nb4) 29. Red1 {[%emt 0:05:36] [#] And now Rxd4 would win.}
Ne2 {[%emt 0:02:04]} 30. Rd3 {[%emt 0:00:09]} fxg3 {[%emt 0:04:00]} 31. fxg3 {
[%emt 0:00:21]} Rad8 {[%emt 0:01:05]} 32. Qc5 {[%emt 0:02:53] Inhibits Rf2.}
Qh5 {[%emt 0:03:33]} 33. Re1 {[%emt 0:05:17]} Rd7 {[%emt 0:05:07]} (33... Nd4
$142 34. Rxd4 exd4 35. Qxh5 gxh5) 34. Nb6 {[%emt 0:03:22]} Rdd8 {[%emt 0:00:00]
} 35. Nc4 {[%emt 0:01:00]} (35. Qxa5 $142 Nd4 36. Nc4) 35... Rd7 {[%emt 0:00:
19]} 36. Qxa5 {[%emt 0:00:59] White is clearly winning.} Rf2 {[%emt 0:02:32]}
37. Qa8+ {[%emt 0:00:17]} Bf8 {[%emt 0:00:39]} 38. Qe8 {[%emt 0:00:22][%csl
Yd7,Ye5]} Qg4 {[%emt 0:02:11]} 39. Nxe5 {[%emt 0:01:04] Weighted Error Value:
White=0.25 (precise) /Black=0.27 (precise)} 1-0

[Event "44th Chess Olympiad Open 2022"]
[Site "Chennai"]
[Date "2022.07.30"]
[Round "2.40"]
[White "Khusenkhojaev, Mustafokhuja"]
[Black "Urazayev, Arystanbek"]
[Result "1/2-1/2"]
[WhiteElo "2238"]
[BlackElo "2430"]
[Annotator "TA"]
[PlyCount "93"]
[EventDate "2022.??.??"]
[TimeControl "60"]

{[%evp 12,93,27,14,35,29,44,44,41,38,41,50,40,37,57,52,50,57,50,54,52,52,50,0,
0,0,0,-86,-20,-20,-29,-29,6,-23,-18,-17,-17,-16,-9,-37,0,-14,0,0,0,0,0,0,0,0,0,
0,0,0,0,0,0,0,0,0,0,0,0,-586,-586,-586,0,-579,-563,-530,0,0,0,-522,-522,-29993,
-1102,-865,0,-522,-432,-593,0,-5304]} 1. d4 {[%emt 0:00:04]} Nf6 {[%emt 0:00:
00]} 2. Nf3 {[%emt 0:00:12]} d5 {[%emt 0:01:39]} 3. c4 {[%emt 0:00:50]} e6 {
[%emt 0:00:00]} 4. g3 {[%emt 0:02:06]} Bb4+ {[%emt 0:01:42]} 5. Bd2 {[%emt 0:
00:00]} a5 {[%emt 0:00:37]} 6. Bg2 {[%emt 0:01:08]} O-O {[%emt 0:00:59]} 7. Qc2
{[%emt 0:01:48]} c5 {[%emt 0:00:25] E11: Bogo-Indian.} 8. cxd5 $1 {[%emt 0:00:
00] The main line 8.cxd5 scores better than 8.dxc5.} cxd4 {[%emt 0:00:07]} 9.
Nxd4 {[%emt 0:01:56]} Qb6 {[%emt 0:00:05] White is slightly better.} 10. e3 {
[%emt 0:00:47]} exd5 {[%emt 0:00:05]} 11. O-O {[%emt 0:01:33]} Nc6 {[%emt 0:00:
00]} 12. Nxc6 {[%emt 0:00:23]} bxc6 {[%emt 0:00:06]} 13. Rc1 {[%emt 0:00:10]}
Rb8 {[%emt 0:00:09]} 14. Nc3 {[%emt 0:00:31]} h5 {[%emt 0:02:08][%cal Yh5h4]}
15. Na4 {[%emt 0:00:45]} Qd8 {[%emt 0:01:20][%cal Yh5h4]} 16. Bxb4 {[%emt 0:00:
00]} Rxb4 {[%emt 0:00:05]} 17. b3 {[%emt 0:01:34]} (17. Qxc6 $2 Bd7 18. Qc5
Bxa4 $19) (17. a3 $1 $14 Rc4 18. Qd1) 17... h4 $11 {[%emt 0:04:55]} 18. a3 {
[%emt 0:11:26]} Rb8 {[%emt 0:02:21] [#]} 19. Rab1 $146 {[%emt 0:02:11]} (19.
Qxc6 $11 h3 20. Bf1) ({Predecessor:} 19. Qxc6 Rxb3 20. Qc7 Qxc7 21. Rxc7 h3 22.
Bf1 Bf5 23. Nc3 Rc8 24. Rxc8+ Bxc8 25. Nxd5 Nxd5 {½-½ (52) Saraci,N (2455)
-Ter Sahakyan,S (2624) Reykjavik 2021}) 19... h3 {[%emt 0:04:17]} ({Better is} 
19... hxg3 $17 20. hxg3 Re8) 20. Bf1 {[%emt 0:11:56]} Re8 {[%emt 0:10:19]} 21.
Nc5 {[%emt 0:13:30]} Qe7 {[%emt 0:06:17]} 22. Qc3 {[%emt 0:03:51]} Bf5 {
[%emt 0:02:23]} 23. Rb2 {[%emt 0:03:34]} Ne4 {[%emt 0:11:12]} 24. Qd4 {[%emt 0:
00:00]} Ng5 {[%emt 0:06:21] And now ...Nf3+ would win.} 25. Qf4 {[%emt 0:05:49]
Prevents Nf3+.} Qf6 {[%emt 0:09:10]} 26. Ra2 {[%emt 0:05:16]} Qg6 {[%emt 0:00:
00]} 27. Be2 {[%emt 0:04:33]} Ne4 {[%emt 0:11:42]} 28. Nxe4 {[%emt 0:05:12]}
Bxe4 {[%emt 0:01:03]} 29. Rb2 {[%emt 0:00:24]} c5 {[%emt 0:03:15]} 30. Rxc5 {
[%emt 0:06:37]} Rbc8 {[%emt 0:00:11]} 31. b4 {[%emt 0:03:19]} Qb6 {[%emt 0:00:
00]} 32. Rxc8 {[%emt 0:00:50]} (32. Rxa5 Rc1+ 33. Bf1 Bg2) 32... Rxc8 {[%emt 0:
00:00]} 33. f3 {[%emt 0:00:33]} Qc6 $1 {[%emt 0:08:05] aiming for ...Qc1+.} 34.
Rd2 $1 {[%emt 0:02:48]} Qc1+ {[%emt 0:01:11]} (34... Qc3 $5 35. Rd1 Bc2 36.
Rxd5 Bb3 $11) 35. Rd1 {[%emt 0:00:05]} Qb2 {[%emt 0:00:03]} 36. Bf1 {[%emt 0:
00:00]} Rc2 {[%emt 0:02:45][%cal Yc2g2]} (36... Qc2 37. Rd4 Rc6 38. fxe4 $16)
37. fxe4 $2 {[%emt 0:04:04] [#]} (37. Bxh3 $11 Rxh2 38. fxe4 Rxh3 39. g4) 37...
Rg2+ $1 $19 {[%emt 0:00:12]} 38. Kh1 {[%emt 0:00:01]} Rxh2+ {[%emt 0:00:25]}
39. Kg1 {[%emt 0:00:01] [#] Strongly threatening Qf3.} Rg2+ $1 {[%emt 0:00:53]}
40. Kh1 {[%emt 0:00:12]} Rh2+ {[%emt 0:00:00]} 41. Kg1 {[%emt 0:30:06] Hoping
for Qf3.} Rg2+ {[%emt 0:01:07]} 42. Kh1 {[#]} Rf2 $1 {[%emt 0:00:01]} 43. Qb8+
Kh7 {[%emt 0:00:02] ( -> ...Rh2+)} 44. Qf4 {[%emt 0:00:11]} Kg8 $2 {[%emt 0:00:
04]} (44... g5 $19 45. Rb1 gxf4 46. Rxb2 Rxb2 47. exd5 axb4 48. axb4 fxe3 49.
Bd3+ Kh6 50. d6 e2 51. Bxe2 Rxe2 52. d7 Rd2 53. d8=B Rxd8 54. Kh2 Rd2+ 55. Kxh3
Kg5 56. b5 Rb2 57. b6 Rxb6 58. Kg2 Kg4 59. Kf2 Re6 60. Kg2 Rf6 61. Kh2 Rf2+ 62.
Kh1 Kxg3 63. Kg1 Rf3 64. Kh1 Rf1#) 45. Rb1 $2 {[%emt 0:00:06]} Qd2 {[%emt 0:00:
02]} (45... Rxf4 46. Rxb2 Rxf1+ 47. Kh2 axb4 48. axb4 (48. Rxb4 dxe4 49. Rxe4
Ra1 $14) 48... dxe4 49. b5 $14 (49. Kxh3 Rf6 $16)) 46. Rd1 {[%emt 0:00:09]} (
46. Qb8+ $2 Kh7 47. Qf4 (47. Kg1 $2 Rg2+ 48. Kh1 Rh2+ 49. Kg1 Qf2#) 47... Rxf4
48. exf4 dxe4 49. bxa5 e3 50. Bxh3 e2) 46... Qb2 ({Worse is} 46... Rxf4 47.
Rxd2 Rxf1+ 48. Kh2 dxe4 49. Rb2 $14 (49. bxa5 Ra1 $11) (49. Kxh3 axb4 50. axb4
Rb1 $11)) (46... Rh2+ $19 47. Kg1 Rg2+ 48. Kh1 Qxd1 49. Qb8+ Kh7) 47. Rd2 $2 {
[%emt 0:00:00] Weighted Error Value: White=0.49/Black=0.42. An unexpected
result.} 1/2-1/2

[Event "44th Chess Olympiad Open 2022"]
[Site "Chennai"]
[Date "2022.07.30"]
[Round "2.41"]
[White "Borisek, Jure"]
[Black "Ahn, Hongjin"]
[Result "1-0"]
[WhiteElo "2577"]
[BlackElo "2303"]
[Annotator "ChessBase"]
[PlyCount "77"]
[EventDate "2022.??.??"]
[TimeControl "60"]

1. e4 {[%emt 0:00:05]} c5 {[%emt 0:00:13]} 2. Nf3 {[%emt 0:00:07]} Nc6 {
[%emt 0:00:10]} 3. Bb5 {[%emt 0:00:07]} g6 {[%emt 0:00:24]} 4. Bxc6 {[%emt 0:
00:00]} bxc6 {[%emt 0:00:22]} 5. O-O {[%emt 0:00:07]} Bg7 {[%emt 0:00:07]} 6.
Re1 {[%emt 0:00:10]} Qc7 {[%emt 0:00:41]} 7. c3 {[%emt 0:03:33]} d6 {[%emt 0:
00:00]} 8. d4 {[%emt 0:07:10]} cxd4 {[%emt 0:00:15]} 9. cxd4 {[%emt 0:00:04]}
Nf6 {[%emt 0:00:07]} 10. Nc3 {[%emt 0:01:39]} O-O {[%emt 0:00:13]} 11. Bg5 {
[%emt 0:11:35]} h6 {[%emt 0:01:53]} 12. Bd2 {[%emt 0:14:53]} Rd8 {[%emt 0:00:
00]} 13. h3 {[%emt 0:04:59]} c5 {[%emt 0:09:00]} 14. d5 {[%emt 0:01:31]} Ba6 {
[%emt 0:14:51]} 15. Bf4 {[%emt 0:05:31]} Nh5 {[%emt 0:11:50]} 16. Bh2 {[%emt 0:
00:00]} Qb7 {[%emt 0:01:53]} 17. Qd2 {[%emt 0:00:18]} Rab8 {[%emt 0:00:54]} 18.
Rab1 {[%emt 0:01:00]} Bc4 {[%emt 0:06:44]} 19. b3 {[%emt 0:02:21]} Ba6 {
[%emt 0:25:06]} 20. e5 {[%emt 0:00:51]} dxe5 {[%emt 0:07:39]} 21. Bxe5 {
[%emt 0:00:13]} e6 {[%emt 0:00:58]} 22. Rbd1 {[%emt 0:08:24]} Rbc8 {[%emt 0:00:
00]} 23. Bxg7 {[%emt 0:02:51]} Kxg7 {[%emt 0:00:10]} 24. d6 {[%emt 0:01:05]}
Nf6 {[%emt 0:02:11]} 25. Ne5 {[%emt 0:02:16]} c4 {[%emt 0:06:54]} 26. Qd4 {
[%emt 0:02:44]} Qb6 {[%emt 0:01:00]} 27. Qf4 {[%emt 0:12:04]} g5 {[%emt 0:00:
00]} 28. Qg3 {[%emt 0:00:03]} cxb3 {[%emt 0:00:42]} 29. h4 {[%emt 0:00:06]} Nh5
{[%emt 0:00:30]} 30. Qg4 {[%emt 0:01:20]} Nf6 {[%emt 0:00:20]} 31. Qg3 {
[%emt 0:00:36]} Nh5 {[%emt 0:00:04]} 32. Qf3 {[%emt 0:01:54]} Nf4 {[%emt 0:00:
00]} 33. hxg5 {[%emt 0:00:22]} hxg5 {[%emt 0:00:24]} 34. Qg3 {[%emt 0:00:13]}
f6 {[%emt 0:00:39]} 35. Ne4 {[%emt 0:01:27]} Rc2 {[%emt 0:01:23]} 36. Nxg5 {
[%emt 0:00:00]} fxe5 {[%emt 0:00:30]} 37. Nxe6+ {[%emt 0:00:00]} Kf6 {[%emt 0:
00:00]} 38. Qg7+ {[%emt 0:00:12]} Kxe6 {[%emt 0:00:11]} 39. Rxe5# {[%emt 0:00:
00]} 1-0

[Event "44th Chess Olympiad Open 2022"]
[Site "Chennai"]
[Date "2022.07.30"]
[Round "2.41"]
[White "Sebenik, Matej"]
[Black "Lee, Jun Hyeok"]
[Result "1-0"]
[WhiteElo "2512"]
[BlackElo "2390"]
[Annotator "ChessBase"]
[PlyCount "51"]
[EventDate "2022.??.??"]
[TimeControl "60"]

1. Nf3 {[%emt 0:00:07]} f5 {[%emt 0:01:24]} 2. c4 {[%emt 0:00:14]} Nf6 {
[%emt 0:00:10]} 3. g3 {[%emt 0:00:13]} g6 {[%emt 0:00:32]} 4. Bg2 {[%emt 0:00:
00]} Bg7 {[%emt 0:00:12]} 5. O-O {[%emt 0:00:20]} O-O {[%emt 0:00:24]} 6. d4 {
[%emt 0:00:08]} d6 {[%emt 0:00:14]} 7. Nc3 {[%emt 0:00:08]} Nc6 {[%emt 0:01:16]
} 8. d5 {[%emt 0:00:38]} Ne5 {[%emt 0:00:13]} 9. Qb3 {[%emt 0:00:21]} Ned7 {
[%emt 0:03:50]} 10. Be3 {[%emt 0:01:12]} a5 {[%emt 0:05:45]} 11. Rad1 {[%emt 0:
00:00]} Nc5 {[%emt 0:04:22]} 12. Bxc5 {[%emt 0:22:32]} dxc5 {[%emt 0:00:02]}
13. Ng5 {[%emt 0:00:06]} Rb8 {[%emt 0:10:43]} 14. Rfe1 {[%emt 0:14:43]} Bh6 {
[%emt 0:17:39]} 15. h4 {[%emt 0:11:32]} Ng4 {[%emt 0:05:47]} 16. Nb5 {[%emt 0:
00:00]} f4 {[%emt 0:08:08]} 17. gxf4 {[%emt 0:08:34]} Rxf4 {[%emt 0:02:44]} 18.
Qg3 {[%emt 0:00:59]} Qf8 {[%emt 0:04:35]} 19. Nxc7 {[%emt 0:04:40]} Bxg5 {
[%emt 0:04:44]} 20. hxg5 {[%emt 0:00:04]} Ne5 {[%emt 0:12:33]} 21. b3 {[%emt 0:
00:00]} Qf5 {[%emt 0:03:52]} 22. f3 {[%emt 0:00:08]} h5 {[%emt 0:09:33]} 23.
Bh3 {[%emt 0:09:17]} Ng4 {[%emt 0:01:24]} 24. d6 {[%emt 0:02:07]} exd6 {
[%emt 0:01:50]} 25. Nd5 {[%emt 0:00:07]} Qe5 {[%emt 0:00:33]} 26. Qxf4 {
[%emt 0:00:15]} 1-0

[Event "44th Chess Olympiad Open 2022"]
[Site "Chennai"]
[Date "2022.07.30"]
[Round "2.41"]
[White "Kwon, Sehyun"]
[Black "Subelj, Jan"]
[Result "0-1"]
[WhiteElo "2225"]
[BlackElo "2498"]
[Annotator "ChessBase"]
[PlyCount "82"]
[EventDate "2022.??.??"]
[TimeControl "60"]

1. d4 {[%emt 0:00:25]} d5 {[%emt 0:00:30]} 2. Nf3 {[%emt 0:00:15]} Nf6 {
[%emt 0:00:48]} 3. g3 {[%emt 0:00:36]} Bf5 {[%emt 0:01:01]} 4. Bg2 {[%emt 0:00:
00]} e6 {[%emt 0:01:05]} 5. c4 {[%emt 0:00:25]} c6 {[%emt 0:00:44]} 6. Nc3 {
[%emt 0:00:44]} h6 {[%emt 0:00:43]} 7. Qb3 {[%emt 0:01:01]} Qb6 {[%emt 0:00:36]
} 8. c5 {[%emt 0:00:23]} Qxb3 {[%emt 0:01:27]} 9. axb3 {[%emt 0:00:07]} Na6 {
[%emt 0:01:04]} 10. Ra4 {[%emt 0:20:19]} Bc2 {[%emt 0:04:41]} 11. Ra3 {[%emt 0:
00:00]} Nd7 {[%emt 0:22:34]} 12. Bf4 {[%emt 0:29:37]} f6 {[%emt 0:06:17]} 13.
Bh3 {[%emt 0:06:41]} g5 {[%emt 0:10:19]} 14. Bd2 {[%emt 0:04:18]} e5 {[%emt 0:
00:00]} 15. O-O {[%emt 0:05:35]} Bg6 {[%emt 0:00:50]} 16. e3 {[%emt 0:10:57]}
e4 {[%emt 0:14:51]} 17. Ne1 {[%emt 0:00:40]} h5 {[%emt 0:00:32]} 18. Rxa6 {
[%emt 0:06:31]} bxa6 {[%emt 0:00:09]} 19. b4 {[%emt 0:00:17]} g4 {[%emt 0:00:
00]} 20. Bg2 {[%emt 0:00:08]} h4 {[%emt 0:00:09]} 21. gxh4 {[%emt 0:01:29]}
Rxh4 {[%emt 0:03:26]} 22. Nc2 {[%emt 0:00:05]} O-O-O {[%emt 0:02:13]} 23. Na1 {
[%emt 0:03:12]} Be7 {[%emt 0:00:17]} 24. Nb3 {[%emt 0:00:04]} Rdh8 {[%emt 0:00:
00]} 25. Ra1 {[%emt 0:00:09]} Nb8 {[%emt 0:00:05]} 26. b5 {[%emt 0:00:52]} axb5
{[%emt 0:00:41]} 27. Rxa7 {[%emt 0:00:14]} Bd8 {[%emt 0:00:06]} 28. Ne2 {
[%emt 0:02:51]} Rxh2 {[%emt 0:00:54]} 29. Na5 {[%emt 0:01:17]} Bxa5 {[%emt 0:
00:00]} 30. Rxa5 {[%emt 0:00:18]} Kb7 {[%emt 0:00:30]} 31. Ra1 {[%emt 0:00:41]}
Nd7 {[%emt 0:00:53]} 32. Ba5 {[%emt 0:00:32]} R2h6 {[%emt 0:00:14]} 33. Nf4 {
[%emt 0:00:19]} Bf7 {[%emt 0:00:40]} 34. Ne2 {[%emt 0:00:33]} Ra8 {[%emt 0:00:
00]} 35. b4 {[%emt 0:00:27]} Nf8 {[%emt 0:00:21]} 36. Ng3 {[%emt 0:00:41]} Bg6
{[%emt 0:00:18]} 37. Bf1 {[%emt 0:00:31]} Ne6 {[%emt 0:00:20]} 38. Ne2 {
[%emt 0:00:26]} Ng5 {[%emt 0:01:20]} 39. Kg2 {[%emt 0:00:33]} Nf3 {[%emt 0:00:
00]} 40. Kg3 {[%emt 0:00:15]} Rh1 {[%emt 0:00:57]} 41. Kg2 {[%emt 0:02:29]}
Rah8 {[%emt 0:01:55]} 0-1

[Event "44th Chess Olympiad Open 2022"]
[Site "Chennai"]
[Date "2022.07.30"]
[Round "2.41"]
[White "Li, Georgiy"]
[Black "Dobrovoljc, Vid"]
[Result "1-0"]
[WhiteElo "1994"]
[BlackElo "2398"]
[Annotator "TA"]
[PlyCount "77"]
[EventDate "2022.??.??"]
[TimeControl "60"]

{[%evp 10,77,8,0,0,0,0,2,16,0,62,27,59,-9,-8,-12,27,-50,-44,-42,-33,-81,-92,
-118,-108,-107,-110,-97,-113,-84,-99,-108,-77,-72,-60,-185,-189,-377,0,-83,-45,
-59,-79,-78,-72,-70,-82,-118,-108,-225,-242,-314,-313,-325,-221,-274,-262,-355,
-122,-119,-126,-135,-124,-125,-110,-203,-162,-177,-71,-159]} 1. c4 {[%emt 0:00:
00]} e5 {[%emt 0:00:19]} 2. Nc3 {[%emt 0:00:11]} Bb4 {[%emt 0:00:08]} 3. g3 {
[%emt 0:00:48]} Bxc3 {[%emt 0:01:19]} 4. bxc3 {[%emt 0:00:18]} Nc6 {[%emt 0:00:
00]} 5. Bg2 {[%emt 0:00:21]} d6 {[%emt 0:00:20]} 6. d3 {[%emt 0:00:44][%cal
Yd2d3,Yd3e4,Ye4e5]} f5 {[%emt 0:02:17] A21: English Opening: 1...e5 2 Nc3.} 7.
f4 {[%emt 0:03:04] [#]} e4 $146 {[%emt 0:21:09]} ({Predecessor:} 7... Nf6 8.
fxe5 Nxe5 9. Nh3 O-O 10. O-O Rb8 11. Nf4 b6 12. Nd5 Nxd5 13. cxd5 Qe7 14. Qd2 {
½-½ (55) Chigaev,M (2630)-Vaishali,R (2393) Biel 2021}) 8. dxe4 {[%emt 0:02:
13]} Nf6 {[%emt 0:07:27] The position is equal.} 9. e5 {[%emt 0:00:00]} Ne4 {
[%emt 0:02:37]} (9... dxe5 $11 10. Bxc6+ bxc6) 10. exd6 {[%emt 0:00:00]} O-O {
[%emt 0:15:28]} 11. Bxe4 {[%emt 0:03:23]} (11. Nf3 $14) 11... fxe4 $11 {
[%emt 0:01:56]} 12. Qd5+ {[%emt 0:06:35]} Kh8 {[%emt 0:06:56]} 13. Be3 {
[%emt 0:11:27]} (13. c5 $11) 13... cxd6 $15 {[%emt 0:01:22]} 14. Rd1 {[%emt 0:
00:00]} ({Don't play} 14. Qxe4 Bf5 15. Qg2 Qa5 $17) 14... Qf6 {[%emt 0:00:09]}
15. Bd4 {[%emt 0:05:13]} (15. Qxd6 $15 Be6 16. Qa3) 15... Qg6 $17 {[%emt 0:00:
00]} 16. c5 {[%emt 0:02:30]} Be6 {[%emt 0:02:00]} 17. Qg5 {[%emt 0:01:50]} ({
Don't blunder} 17. Qxd6 $2 Rad8 18. Qc7 Rf7 19. Qxd8+ Nxd8 $19) 17... Qxg5 {
[%emt 0:05:19]} 18. fxg5 {[%emt 0:00:13]} Nxd4 {[%emt 0:07:30]} 19. cxd4 {
[%emt 0:01:49]} dxc5 {[%emt 0:00:05]} 20. d5 {[%emt 0:03:03]} Bd7 {[%emt 0:00:
00]} 21. h4 {[%emt 0:00:39]} Rad8 {[%emt 0:03:11]} 22. h5 {[%emt 0:05:52]} ({
White should try} 22. Nh3 $15) 22... Ba4 $19 {[%emt 0:00:23]} 23. Rd2 {[%emt 0:
00:00]} (23. Rb1) 23... c4 $2 {[%emt 0:00:43]} (23... Rd6 $19 {White must now
prevent ...Rb6.} 24. Rh4 Rb6) 24. e3 {[%emt 0:04:06]} (24. Nh3 $1 $11 {keeps
the balance.}) 24... b5 {[%emt 0:00:21]} 25. Rh4 {[%emt 0:00:53]} c3 {[%emt 0:
00:00][%cal Yc4c3,Yc3c2]} 26. Rd4 {[%emt 0:01:21] [#]} c2 $1 $36 {[%emt 0:00:
19] White is under strong pressure.} 27. Ne2 {[%emt 0:00:00]} Rf3 {[%emt 0:00:
21]} 28. Rhxe4 {[%emt 0:15:21]} Rxg3 {[%emt 0:00:22] Hoping for ...Rg2.} 29.
Kf2 {[%emt 0:00:32] Prevents Rg2+.} (29. d6 $17 Rg1+ 30. Kf2 Rxg5 31. d7 Rf5+
32. Kg3) 29... Rxg5 {[%emt 0:00:23]} 30. d6 {[%emt 0:00:00]} Rxh5 {[%emt 0:00:
37]} 31. d7 {[%emt 0:00:28] [#] Re8+ would kill now.} Rf5+ {[%emt 0:00:05]} 32.
Ke1 {[%emt 0:01:21] Re8+ is the strong threat.} Kg8 {[%emt 0:00:20][%cal Yb5b4]
} 33. Kd2 {[%emt 0:01:17]} a5 $2 {[%emt 0:00:26]} ({But not} 33... b4 $2 34.
Rxb4 Rxd7+ 35. Red4 $19) (33... Kf7 $19 {aiming for .. .g5.} 34. Rf4 Rxf4 35.
Nxf4 Ke7 36. Nd5+ Kxd7 37. Nf6+ Kc7 38. Rxd8 Kxd8 39. Nxh7 Ke7) 34. Re8+ $17 {
[%emt 0:00:34]} Rf8 {[%emt 0:00:07]} 35. Rxd8 {[%emt 0:00:00]} Rxd8 {[%emt 0:
00:04]} 36. Nc3 {[%emt 0:00:28]} Kf7 {[%emt 0:00:48]} 37. Nxa4 {[%emt 0:00:35]}
(37. Ne4 $17) 37... bxa4 $19 {[%emt 0:00:10]} 38. Kxc2 {[%emt 0:00:14]} Ke7 {
[%emt 0:00:46]} (38... a3 $19 {has better winning chances. Threatens to win
with ...Ke6.} 39. Rd3 h5) 39. Rxa4 {[%emt 0:00:00] Weighted Error Value:
White=0.42/Black=0.33. Loss on time!?} (39. Rh4 $142) 1-0